bitfinex-derivatives/quotes_ETHF0:USTF0_20251116
["timestamp","ask_amount","ask_price","bid_price","bid_amount"]
[1763334334249,3.21271887,3034.2,3033.0,3.50024301]
[1763334334447,3.2078,3033.5,3031.6,3.2078]
[1763334334633,3.2078,3033.1,3031.6,3.21186108]
[1763334334838,3.2078,3033.1,3032.2,0.00494666]
[1763334335145,0.00494666,3032.7,3032.3,3.2078]
[1763334335542,0.00494666,3032.7,3032.2,0.00494666]
[1763334335850,0.53464,3032.4,3031.8,3.2078]
[1763334336140,3.2078,3032.3,3031.6,0.00406108]
[1763334336342,3.2078,3031.7,3031.6,0.00406108]
[1763334336534,3.2078,3032.1,3031.6,0.00406108]
[1763334336737,0.00318967,3032.4,3031.6,0.00406108]
[1763334336942,0.53483,3031.3,3030.3,3.2078]
[1763334337241,3.2078,3032.3,3031.2,3.2078]
[1763334337435,3.2078,3034.7,3032.2,5.53919403]
[1763334337750,1.4315,3036.6,3032.0,1.3933]
[1763334337751,0.00494666,3033.8,3033.3,3.2078]
[1763334337944,0.53426,3034.6,3033.5,3.74222]
[1763334338150,2.91133152,3034.7,3034.0,3.2078]
[1763334338345,0.14985508,3038.9,3034.5,3.2078]
[1763334338346,3.2078,3036.3,3034.5,3.2078]
[1763334338549,0.00279645,3036.3,3035.6,3.2078]
[1763334338946,0.68621142,3036.0,3034.5,0.00355481]
[1763334339255,3.2078,3034.6,3034.5,0.00355481]
[1763334339442,3.2078,3034.6,3033.0,20.582]
[1763334339645,3.2078,3033.1,3033.0,20.582]
[1763334339857,3.2078,3033.5,3033.0,20.582]
[1763334340143,3.89401142,3033.1,3032.9,0.00494666]
[1763334340346,3.89401142,3033.1,3031.3,3.2078]
[1763334340646,3.2078,3032.2,3031.3,0.0024703]
[1763334340951,0.68621142,3031.8,3031.3,0.0024703]
[1763334341344,0.53481,3031.5,3031.3,0.0024703]
[1763334341651,1.22096142,3031.8,3031.3,0.0024703]
[1763334341944,0.68621142,3031.6,3031.3,0.0024703]
[1763334342153,3.2078,3031.4,3030.0,4.6011]
[1763334342351,3.2078,3030.9,3030.0,4.6011]
[1763334342652,3.2078,3030.2,3029.8,3.2078]
[1763334342856,3.74282,3030.2,3029.4,3.2078]
[1763334343046,0.68621142,3029.8,3029.4,3.2078]
[1763334343245,3.2078,3029.6,3029.4,0.00286162]
[1763334343449,3.2078,3029.6,3028.8,3.19160828]
[1763334343748,6.0,3029.5,3028.2,3.2078]
[1763334344050,6.0,3029.5,3023.7,11.91454]
[1763334344051,3.89401142,3028.9,3027.4,3.2078]
[1763334344258,0.53541,3028.0,3027.4,3.2078]
[1763334344452,0.00399133,3028.0,3027.4,3.21078495]
[1763334344648,0.00893799,3028.0,3027.4,3.21411049]
[1763334344950,3.89401142,3028.9,3027.5,13.74343892]
[1763334345147,0.22931788,3028.9,3028.4,3.2078]
[1763334345550,0.22931788,3028.9,3028.0,23.7008]
[1763334345854,3.2078,3028.7,3028.1,40.8]
[1763334346056,0.22931788,3028.4,3028.1,40.8]
[1763334346555,0.22931788,3028.4,3028.2,3.2078]
[1763334346766,3.2078,3028.3,3027.5,3.2078]
[1763334346951,0.00905635,3028.7,3027.9,3.2078]
[1763334347156,0.00905635,3028.7,3027.4,2.33770452]
[1763334347157,3.2078,3030.1,3028.6,1.3933]
[1763334347359,0.53507,3029.9,3029.2,3.2078]
[1763334347560,3.74277,3030.5,3029.3,0.53516]
[1763334347747,3.2078,3031.0,3029.7,3.2078]
[1763334347954,1.4315,3032.4,3029.7,3.2078]
[1763334347955,3.2078,3031.2,3029.7,3.2078]
[1763334348148,3.2078,3030.4,3030.1,0.00494666]
[1763334348453,3.21274666,3030.8,3030.1,0.00494666]
[1763334348658,0.53509,3029.8,3029.7,0.00255213]
[1763334348860,3.2078,3030.3,3029.7,0.00255213]
[1763334349047,0.53986666,3030.8,3030.1,3.2078]
[1763334349247,0.53503,3030.2,3029.7,3.21035213]
[1763334349461,0.00494666,3030.8,3029.7,0.00255213]
[1763334349462,0.53509,3029.8,3029.7,0.00255213]
[1763334349659,0.53509,3029.8,3027.7,0.53544]
[1763334349660,0.53528,3028.7,3027.7,0.53544]
[1763334349957,3.2078,3028.9,3028.0,3.2078]
[1763334350159,3.2078,3029.9,3028.8,3.2078]
[1763334350354,3.2078,3030.4,3028.8,3.2078]
[1763334350556,3.2078,3030.4,3028.1,50.97115464]
[1763334350557,3.2078,3030.4,3030.0,0.53505]
[1763334350755,3.2078,3030.4,3029.9,0.00332554]
[1763334350957,0.53514,3029.6,3029.1,3.2078]
[1763334351258,0.00234163,3030.4,3029.1,3.21069124]
[1763334351464,0.53505,3030.1,3029.2,0.53519]
[1763334351661,0.00234163,3030.4,3029.9,3.2078]
[1763334351965,0.00494666,3030.5,3030.3,0.535]
[1763334352148,3.2078,3030.8,3030.0,3.64113942]
[1763334352354,0.53502,3030.2,3029.5,3.2078]
[1763334352556,3.2078,3030.3,3029.5,3.2078]
[1763334352857,3.2078,3030.9,3030.0,3.2078]
[1763334353049,0.00494666,3030.8,3030.1,0.00494666]
[1763334353257,3.74282,3030.2,3030.1,0.00494666]
[1763334353451,0.53518,3029.3,3029.1,0.00289124]
[1763334353665,0.53517,3029.4,3029.1,0.00289124]
[1763334353854,0.53518,3029.3,3029.1,0.00289124]
[1763334354356,0.53531,3028.6,3028.3,11.887]
[1763334354561,3.74309,3028.7,3028.3,11.887]
[1763334354765,3.2078,3028.7,3028.3,11.887]
[1763334354960,3.2078,3028.7,3027.6,23.5678]
[1763334355164,3.2078,3028.8,3027.6,20.36]
[1763334355360,0.53546,3027.7,3027.6,20.36]
[1763334355563,0.53536,3028.3,3027.6,20.36]
[1763334355768,0.53545,3027.8,3027.6,20.36]
[1763334355967,3.2078,3028.6,3027.6,20.36]
[1763334356164,0.53555,3027.2,3027.1,3.2078]
[1763334356365,3.2078,3027.7,3026.7,3.2078]
[1763334356563,0.53555,3027.2,3026.7,3.2111028]
[1763334356859,3.2078,3027.4,3026.7,3.2111028]
[1763334357066,0.53562,3026.8,3026.7,3.2111028]
[1763334357266,0.53579,3025.9,3023.2,2.26982152]
[1763334357453,0.53579,3025.9,3022.9,2.87461843]
[1763334357454,0.53572,3026.3,3025.2,3.2078]
[1763334357652,0.00495506,3026.1,3024.6,3.2078]
[1763334357852,0.53597,3024.8,3024.6,3.2078]
[1763334358165,0.5361,3024.1,3023.9,3.2078]
[1763334358373,0.53624,3023.3,3023.1,3.2078]
[1763334358557,3.2078,3023.9,3023.1,3.1958]
[1763334358763,3.21275506,3024.3,3023.5,3.2078]
[1763334358966,3.21275506,3024.3,3023.9,3.2078]
[1763334359159,0.00495506,3024.3,3023.9,3.2078]
[1763334359870,3.2078,3025.2,3024.0,11.24007408]
[1763334360075,3.2078,3025.2,3024.4,3.2078]
[1763334360271,0.53568,3026.5,3025.0,3.2078]
[1763334360570,3.2078,3026.8,3025.6,3.2078]
[1763334360770,0.00495506,3026.5,3025.9,0.00495506]
[1763334360968,3.2078,3026.0,3025.1,20.276]
[1763334361673,0.00495506,3026.5,3022.2,1.4858]
[1763334361674,0.00495506,3026.5,3025.6,3.2078]
[1763334361870,3.2078,3026.3,3024.1,3.2078]
[1763334362063,3.2078,3026.3,3024.5,3.2078]
[1763334362264,3.2078,3026.2,3024.5,3.2078]
[1763334362459,3.2078,3026.6,3025.6,3.2078]
[1763334362666,3.2078,3028.4,3026.5,3.2078]
[1763334362865,3.2078,3028.4,3026.3,3.2078]
[1763334363077,3.2078,3028.0,3026.4,20.247]
[1763334363270,3.2078,3028.4,3026.6,3.62401132]
[1763334363469,3.2078,3028.2,3027.0,3.2078]
[1763334363771,0.00495506,3027.8,3027.2,0.00495506]
[1763334364168,0.00495506,3027.8,3027.7,0.53546]
[1763334364369,0.00246968,3028.2,3027.3,3.52640367]
[1763334364570,0.00246968,3028.2,3027.2,0.00495506]
[1763334364774,0.53553,3027.4,3027.2,0.00495506]
[1763334365180,0.53553,3027.4,3027.2,5.06e-06]
[1763334365477,0.53563,3026.8,3026.6,3.2078]
[1763334365675,0.00246968,3028.2,3027.3,3.63656318]
[1763334365879,3.2078,3028.3,3027.5,3.2078]
[1763334366074,3.2078,3028.3,3027.4,3.2078]
[1763334366273,0.53546,3027.7,3027.5,0.00495506]
[1763334366472,0.53563,3026.7,3026.6,3.2078]
[1763334366670,0.53569,3026.4,3026.0,3.2078]
[1763334366865,0.53573,3026.2,3026.0,3.21131385]
[1763334367167,3.2078,3026.1,3025.1,20.186]
[1763334367370,3.2078,3025.6,3025.1,20.186]
[1763334367572,0.00348205,3026.4,3025.5,0.53583]
[1763334367771,0.00348205,3026.4,3025.2,40.8]
[1763334367979,0.00348205,3026.4,3025.2,44.01158395]
[1763334368478,0.00348205,3026.4,3025.7,3.2078]
[1763334368674,0.00348205,3026.4,3026.1,3.2078]
[1763334368873,3.2078,3027.2,3026.1,3.2078]
[1763334369073,3.2078,3027.2,3026.5,3.2078]
[1763334369286,3.2078,3027.6,3027.4,0.53549]
[1763334369475,3.2078,3028.2,3027.5,23.3658]
[1763334369669,3.21275506,3028.2,3027.5,26.63390188]
[1763334369869,0.00827855,3028.2,3028.0,3.74319]
[1763334370069,3.2078,3029.1,3027.6,7.55275954]
[1763334370276,3.2078,3029.1,3028.0,3.2078]
[1763334370680,3.2078,3029.5,3028.3,3.2078]
[1763334371075,0.00400442,3029.5,3029.2,3.2078]
[1763334371273,1.3923,3029.4,3028.6,0.00495506]
[1763334371675,0.00400442,3029.5,3029.1,3.2078]
[1763334372175,0.00400442,3029.5,3028.6,0.00495506]
[1763334372176,3.2078,3029.2,3028.6,0.00495506]
[1763334372581,0.00400442,3029.5,3028.6,0.00495506]
[1763334372779,3.2078,3029.2,3028.6,0.00495506]
[1763334373088,3.2078,3028.8,3026.9,3.2078]
[1763334373378,3.2078,3028.0,3027.3,3.2078]
[1763334373585,3.2078,3027.9,3026.9,3.2078]
[1763334374077,3.2078,3027.9,3027.1,0.00495506]
[1763334374286,3.2078,3027.5,3025.4,3.2078]
[1763334374484,1.39725506,3027.7,3024.8,23.2978]
[1763334374485,3.2078,3025.7,3024.8,23.2978]
[1763334374670,3.2078,3025.1,3024.7,3.67383404]
[1763334374871,3.2078,3025.1,3024.4,3.2078]
[1763334375076,3.2078,3025.3,3024.4,3.2078]
[1763334375375,3.2078,3024.9,3024.4,0.0032017]
[1763334375576,0.00495506,3025.2,3024.5,6.76338831]
[1763334375872,0.00495506,3025.2,3024.4,0.0032017]
[1763334376078,3.2078,3024.6,3024.4,0.0032017]
[1763334376382,3.2078,3024.6,3023.5,20.086]
[1763334376678,3.2078,3024.6,3022.8,3.2078]
[1763334376679,3.2078,3023.7,3022.2,3.2078]
[1763334376981,3.2078,3023.0,3022.2,3.2078]
[1763334377180,3.2078,3023.0,3021.7,20.07]
[1763334377381,3.2078,3022.1,3021.7,20.07]
[1763334377691,3.2078,3023.3,3021.7,20.07]
[1763334377875,0.00496376,3022.8,3022.0,3.2078]
[1763334378179,0.00837747,3022.8,3022.0,3.21064809]
[1763334378379,0.00837747,3022.8,3022.0,0.00284809]
[1763334378584,3.2078,3022.4,3022.0,0.00284809]
[1763334379175,0.00837747,3022.8,3022.0,0.00284809]
[1763334379176,0.53644,3022.2,3022.0,0.00284809]
[1763334379382,3.2078,3022.6,3022.0,0.00284809]
[1763334379587,0.53634,3022.7,3022.1,3.82519193]
[1763334379791,0.00837747,3022.8,3022.4,3.2078]
[1763334380178,0.00837747,3022.8,3022.5,3.49750825]
[1763334380483,3.2078,3024.0,3022.5,6.0]
[1763334380684,3.2078,3024.0,3022.9,3.2078]
[1763334380883,3.2078,3024.0,3022.6,5.74799084]
[1763334380884,3.2078,3025.2,3023.6,3.2078]
[1763334381183,3.2078,3025.6,3024.5,3.2078]
[1763334381685,0.00496376,3025.4,3024.7,0.00496376]
[1763334381874,0.00496376,3025.4,3025.0,3.2078]
[1763334382074,0.00496376,3025.4,3025.2,3.2078]
[1763334382381,0.00496376,3025.4,3025.0,20.007]
[1763334382382,0.53592,3025.1,3025.0,20.007]
[1763334382575,0.00496376,3025.4,3025.0,20.007]
[1763334382780,0.00339729,3025.6,3025.3,3.2078]
[1763334382979,0.00339729,3025.6,3025.4,3.2078]
[1763334383482,0.53922729,3025.6,3025.4,3.2078]
[1763334383786,0.53597,3024.8,3024.7,0.00496376]
[1763334383979,0.53601,3024.6,3024.5,0.00380543]
[1763334384179,0.00339729,3025.6,3023.8,3.2078]
[1763334384180,0.53613,3023.9,3023.8,3.2078]
[1763334384380,0.53613,3023.9,3022.6,0.096]
[1763334384381,0.53631,3022.9,3022.6,3.3038]
[1763334384581,1.4996,3024.3,3022.1,23.1668]
[1763334384582,0.53643,3022.2,3022.1,23.1668]
[1763334384885,3.2078,3023.8,3022.1,23.1668]
[1763334385076,0.53634,3022.8,3022.6,3.21276376]
[1763334385279,0.00252219,3022.8,3022.6,0.00851262]
[1763334385576,3.21032219,3022.8,3021.0,3.2078]
[1763334385775,3.2078,3021.7,3020.8,19.94]
[1763334385975,3.2078,3020.9,3020.1,15.1118]
[1763334386189,3.2078,3020.6,3020.1,11.904]
[1763334386484,3.2078,3020.2,3020.1,0.00241364]
[1763334386874,3.21085202,3020.6,3020.1,0.00241364]
[1763334387278,3.2078,3021.6,3020.6,0.53671]
[1763334387584,3.2078,3022.2,3021.3,3.2078]
[1763334387886,2.3288908,3025.4,3020.1,11.90941364]
[1763334387887,3.2078,3023.2,3022.1,3.2078]
[1763334388084,3.2078,3023.2,3022.7,3.2078]
[1763334388290,3.2078,3024.3,3023.1,3.2078]
[1763334388482,0.00293143,3023.2,3023.1,3.2078]
[1763334388786,3.2078,3024.3,3023.4,0.5362]
[1763334388981,2.73708541,3026.0,3023.7,3.2078]
[1763334388982,3.2078,3025.2,3023.7,3.2078]
[1763334389188,3.2078,3025.2,3024.3,3.2078]
[1763334389382,3.2078,3025.2,3024.4,0.53604]
[1763334389583,3.2078,3025.2,3024.5,0.00496376]
[1763334389788,3.02816102,3025.2,3024.5,0.00496376]
[1763334389986,3.2078,3025.8,3024.7,3.2078]
[1763334390285,3.2078,3025.9,3024.7,3.2078]
[1763334390493,3.2078,3025.9,3025.1,3.2078]
[1763334390682,0.00496376,3025.8,3025.1,3.21060099]
[1763334390879,3.09056213,3025.9,3025.2,3.52042296]
[1763334391092,3.2078,3026.5,3025.5,3.2078]
[1763334391487,3.2078,3026.5,3025.6,3.44338423]
[1763334391790,3.2078,3027.1,3026.3,0.5357]
[1763334391991,0.00495548,3027.0,3026.4,0.00495548]
[1763334392387,2.34893187,3029.4,3026.8,3.2078]
[1763334392388,3.2078,3027.5,3026.8,3.2078]
[1763334392580,3.2078,3028.8,3027.3,3.2078]
[1763334392983,3.2078,3028.8,3027.7,3.2078]
[1763334393185,3.2078,3029.2,3028.1,3.2078]
[1763334393489,0.84933187,3031.8,3029.6,3.2078]
[1763334393691,2.3288908,3033.5,3028.3,0.00495548]
[1763334393692,0.81137557,3031.7,3031.0,3.2078]
[1763334393883,0.53479,3031.5,3031.4,3.2078]
[1763334394083,14.09332323,3032.5,3031.4,3.2078]
[1763334394285,3.2078,3033.5,3031.9,3.2078]
[1763334394595,3.2078,3032.0,3030.3,3.77127221]
[1763334394778,3.2078,3030.9,3030.3,3.77127221]
[1763334394985,3.2078,3030.9,3030.8,0.0049465]
[1763334395181,0.0049465,3030.9,3030.8,0.0049465]
[1763334395391,3.2127465,3030.9,3030.8,4.65e-05]
[1763334395887,9.2127465,3030.9,3029.7,40.8]
[1763334396089,9.2127465,3030.9,3028.5,11.903]
[1763334396090,3.2078,3029.8,3028.9,3.2078]
[1763334396390,0.0049465,3030.9,3027.9,11.902]
[1763334396391,1.4996,3029.4,3028.4,19.858]
[1763334396595,3.2078,3030.2,3028.5,44.0078]
[1763334396785,3.2078,3030.4,3029.0,3.71459676]
[1763334396983,3.2078,3030.6,3028.9,3.2078]
[1763334397185,0.0049465,3030.9,3029.0,3.65155119]
[1763334397493,0.0049465,3030.9,3029.3,3.2078]
[1763334397693,3.2078,3030.7,3029.3,3.2078]
[1763334397992,0.0049465,3030.9,3029.8,0.53508]
[1763334398288,3.2078,3032.3,3030.2,3.7428]
[1763334398495,3.2078,3032.3,3030.5,0.53494]
[1763334398693,3.2078,3032.3,3030.2,3.2078]
[1763334398694,3.2078,3032.3,3030.3,4.33525857]
[1763334398886,3.2078,3032.3,3030.6,11.27202743]
[1763334399080,3.2078,3032.3,3031.8,3.2078]
[1763334399289,3.2078,3032.4,3031.0,19.806]
[1763334399695,3.2078,3032.4,3031.1,3.79462459]
[1763334399994,3.2078,3032.5,3031.7,3.2078]
[1763334400197,3.2078,3032.9,3031.7,3.2078]
[1763334400387,3.2078,3032.5,3031.8,3.2078]
[1763334400697,0.00359269,3032.5,3031.8,3.21012119]
[1763334400891,0.00359269,3032.5,3031.9,3.54182334]
[1763334401099,0.00359269,3032.5,3031.8,0.00232119]
[1763334401290,3.21633919,3032.5,3031.2,17.965]
[1763334401483,3.21633919,3032.5,3030.4,11.894]
[1763334401484,3.2078,3031.9,3030.4,11.894]
[1763334401687,3.2078,3031.1,3030.1,3.2078]
[1763334401989,3.2078,3030.9,3030.1,3.2078]
[1763334402191,3.2078,3030.8,3029.2,3.2078]
[1763334402491,3.2078,3030.8,3029.0,22.9658]
[1763334402694,3.2078,3029.7,3029.6,0.0049465]
[1763334402900,0.0049465,3030.2,3029.6,0.0049465]
[1763334403082,3.2078,3030.0,3029.6,0.0049465]
[1763334403287,1.4996,3029.4,3029.0,0.00343619]
[1763334403484,1.4996,3029.4,3027.9,3.2078]
[1763334403695,3.2078,3029.1,3027.9,3.2078]
[1763334403896,3.2078,3029.1,3028.0,3.53737129]
[1763334404295,3.2078,3029.1,3027.9,3.2078]
[1763334404489,0.0049465,3028.9,3028.4,3.2078]
[1763334404691,3.2078,3030.0,3028.8,3.2078]
[1763334404890,3.2078,3030.8,3029.3,3.2078]
[1763334405088,3.2078,3030.8,3029.8,3.2078]
[1763334405292,3.2101923,3030.8,3029.8,3.2078]
[1763334405497,3.2078,3030.3,3029.9,3.43573764]
[1763334405685,3.2078,3030.3,3029.8,0.0049465]
[1763334405886,0.0049465,3030.4,3029.8,0.0049465]
[1763334406184,3.2078,3030.1,3029.8,0.0049465]
[1763334406491,1.4996,3029.4,3028.3,3.2078]
[1763334406695,3.2078,3029.2,3028.4,3.2078]
[1763334406890,1.4996,3029.4,3028.5,40.8]
[1763334406891,3.2078,3029.1,3028.5,40.8]
[1763334407092,0.0023923,3030.8,3028.8,3.2078]
[1763334407093,3.2078,3029.9,3028.8,3.2078]
[1763334407288,3.2078,3029.9,3028.5,44.40358289]
[1763334407289,3.2078,3030.4,3029.4,3.2078]
[1763334407497,3.2078,3030.4,3029.5,19.701]
[1763334407802,3.2078,3030.4,3030.0,0.53505]
[1763334407988,3.2101923,3030.8,3029.8,3.2078]
[1763334408186,3.2101923,3030.8,3029.9,0.53506]
[1763334408388,0.0049465,3030.6,3030.3,3.2078]
[1763334409197,0.0023923,3030.8,3030.4,4.19072748]
[1763334409397,3.2078,3031.4,3030.4,4.19072748]
[1763334409398,3.2078,3031.4,3030.7,3.2078]
[1763334409595,3.2078,3031.9,3031.1,3.2078]
[1763334409798,3.2078,3032.5,3031.1,3.2078]
[1763334409985,3.2078,3032.5,3032.1,3.2078]
[1763334410189,0.0049465,3032.1,3031.8,19.661]
[1763334410590,1.4853,3032.0,3031.7,3.07417808]
[1763334410790,3.2078,3031.8,3030.0,3.2078]
[1763334410989,3.2078,3031.3,3030.4,3.2078]
[1763334411192,3.2078,3030.9,3030.0,3.2078]
[1763334411391,0.0049465,3032.1,3029.5,3.2078]
[1763334411392,3.2078,3030.5,3029.5,3.2078]
[1763334411793,3.2078,3030.5,3030.1,0.0049465]
[1763334412695,3.2078,3031.0,3030.1,0.0049465]
[1763334413101,3.2078,3031.4,3030.1,0.0049465]
[1763334413294,3.2078,3031.3,3030.4,3.46212882]
[1763334413495,3.2078,3030.6,3030.1,19.6259465]
[1763334413696,3.2078,3031.0,3030.1,0.0049465]
[1763334413903,3.2078,3031.4,3030.3,3.21181596]
[1763334414198,3.2078,3030.9,3030.3,3.21181596]
[1763334414504,0.0049465,3032.1,3030.7,3.2078]
[1763334414689,3.2078,3032.0,3030.7,3.2078]
[1763334414891,3.2078,3032.0,3031.1,3.2078]
[1763334415105,3.2078,3032.0,3030.8,3.58791763]
[1763334415396,3.2078,3031.5,3030.7,3.2078]
[1763334415604,3.2078,3031.5,3030.9,0.53488]
[1763334415797,3.2078,3031.5,3030.7,3.2078]
[1763334416001,3.2078,3031.1,3030.3,0.00401596]
[1763334416194,0.0049465,3032.1,3030.3,19.57401596]
[1763334416195,3.2078,3030.9,3030.3,19.57401596]
[1763334416800,3.2078,3031.4,3030.6,3.2078]
[1763334417000,3.2078,3030.9,3030.4,3.53970751]
[1763334417206,3.2078,3031.2,3030.3,19.57401596]
[1763334417399,3.2078,3030.8,3030.4,40.8]
[1763334417608,3.2078,3031.4,3030.7,3.2078]
[1763334417903,0.0049465,3032.1,3030.4,48.46569761]
[1763334417904,3.2078,3031.8,3031.3,3.2078]
[1763334418208,3.2078,3031.8,3031.5,0.53478]
[1763334418403,3.2078,3031.8,3031.4,19.545]
[1763334418600,3.2078,3031.8,3031.5,40.8]
[1763334419003,3.2078,3031.8,3030.6,19.527]
[1763334419202,3.2078,3031.6,3030.6,19.527]
[1763334419507,3.2078,3031.6,3030.9,3.2078]
[1763334419896,3.2078,3031.2,3030.7,40.8]
[1763334420304,3.2078,3031.6,3030.8,3.54725796]
[1763334420602,3.2078,3031.2,3030.1,3.2127465]
[1763334420801,3.2078,3030.7,3028.9,3.2078]
[1763334421004,0.81258524,3031.1,3027.5,3.2078]
[1763334421005,3.2078,3029.2,3027.5,3.2078]
[1763334421201,3.2078,3029.2,3026.1,11.884]
[1763334421202,3.2078,3027.6,3027.1,3.2078]
[1763334421502,3.2078,3027.6,3026.5,3.69056892]
[1763334421700,3.2078,3027.2,3026.5,3.69347531]
[1763334421894,3.2078,3027.2,3026.7,0.00495483]
[1763334422097,0.00495483,3027.4,3026.5,0.00290639]
[1763334422297,0.00495483,3027.4,3027.0,1.4677]
[1763334422698,2.88253917,3027.6,3027.4,0.5355]
[1763334422894,3.2078,3028.8,3027.6,0.53547]
[1763334423098,3.2078,3029.3,3027.7,20.04145]
[1763334423302,3.2078,3028.5,3027.9,0.53541]
[1763334423504,3.2078,3028.0,3027.3,3.72957448]
[1763334423697,3.2078,3027.4,3026.7,0.53562]
[1763334423898,3.2078,3027.4,3027.3,0.00495483]
[1763334424098,3.21013922,3027.4,3027.3,0.00495483]
[1763334425104,9.21013922,3027.4,3025.6,17.39]
[1763334425309,3.2078,3026.6,3026.0,3.2078]
[1763334425505,3.2078,3026.6,3025.9,0.53576]
[1763334425707,3.2078,3026.6,3025.7,40.8]
[1763334425708,9.2078,3026.6,3025.7,40.8]
[1763334425909,3.2078,3025.8,3024.2,3.2078]
[1763334426112,3.2078,3025.2,3024.2,3.2078]
[1763334426406,3.2078,3025.7,3024.7,0.00495483]
[1763334426713,3.2078,3025.3,3024.7,0.0082331]
[1763334426907,3.2078,3025.3,3024.8,3.49914325]
[1763334427107,3.2078,3025.3,3024.7,0.0082331]
[1763334427310,0.00495483,3026.5,3026.3,0.53569]
[1763334427610,2.88676405,3029.3,3026.7,0.53562]
[1763334427611,3.2078,3026.9,3026.7,0.53562]
[1763334427808,3.2078,3027.5,3026.8,2.31372916]
[1763334428104,3.2078,3028.2,3027.2,4.6755]
[1763334428308,3.21119735,3028.2,3027.6,3.2078]
[1763334428511,3.21615218,3028.2,3027.9,0.53541]
[1763334428703,3.2078,3028.1,3027.7,3.51219405]
[1763334428903,0.00835218,3028.2,3028.0,4.04759405]
[1763334429100,3.2078,3028.1,3028.0,3.51219405]
[1763334429318,9.2078,3028.1,3027.2,0.00313336]
[1763334429509,3.2078,3027.3,3026.4,19.455]
[1763334429811,3.2078,3026.9,3026.4,19.455]
[1763334430003,3.2078,3027.1,3026.5,44.53066141]
[1763334430205,3.2078,3026.7,3025.2,3.2078]
[1763334430403,3.2078,3026.1,3025.8,0.00495483]
[1763334431007,3.2078,3026.1,3024.7,11.061]
[1763334431198,3.2078,3026.1,3024.3,3.2078]
[1763334431199,3.2078,3025.0,3024.3,3.2078]
[1763334431407,3.2078,3024.6,3023.7,2.31372916]
[1763334431607,3.2078,3026.3,3024.5,2.31372916]
[1763334431805,3.2078,3026.8,3025.5,3.2078]
[1763334432007,0.00495483,3025.7,3025.6,19.97383]
[1763334432210,0.00261715,3026.8,3025.6,27.81124204]
[1763334432404,3.2078,3028.1,3026.6,3.2078]
[1763334432608,3.2078,3029.5,3028.6,0.53529]
[1763334432800,3.2078,3030.1,3028.7,3.2078]
[1763334433004,3.2078,3030.1,3029.1,3.2078]
[1763334433212,0.00495483,3029.9,3029.3,0.00495483]
[1763334433515,0.00880222,3029.9,3029.3,0.00758528]
[1763334433706,3.2078,3029.7,3029.3,0.00758528]
[1763334433903,3.2078,3030.8,3029.6,3.2078]
[1763334434103,3.2078,3030.8,3030.0,3.2078]
[1763334434505,2.34893187,3033.0,3029.7,3.59967531]
[1763334434506,3.2078,3031.9,3031.2,0.53482]
[1763334434710,3.2078,3031.9,3030.2,2.31372916]
[1763334434711,3.2078,3032.3,3031.5,0.53478]
[1763334435007,13.67005843,3034.7,3031.9,3.2078]
[1763334435008,3.2078,3032.7,3031.9,3.2078]
[1763334435406,3.2078,3032.7,3032.3,0.53464]
[1763334435606,3.2078,3033.1,3032.0,3.71044087]
[1763334435815,3.2078,3033.1,3031.9,3.2078]
[1763334435816,3.2078,3033.1,3032.1,40.8]
[1763334436008,3.21113254,3033.1,3032.4,3.2078]
[1763334436212,0.00494592,3032.9,3032.4,3.74241]
[1763334436412,3.21274592,3032.9,3032.2,3.72930335]
[1763334436710,0.00494592,3032.9,3032.5,3.2078]
[1763334436906,0.00494592,3032.9,3032.5,3.7424]
[1763334437105,0.00494592,3032.9,3032.5,3.2078]
[1763334437306,0.00494592,3032.9,3032.6,19.382]
[1763334437513,0.00494592,3032.9,3032.6,19.381]
[1763334438915,3.2078,3033.4,3032.7,3.48414513]
[1763334439117,3.2078,3034.8,3033.2,2.31372916]
[1763334439323,3.2078,3035.4,3034.7,0.53422]
[1763334439610,3.2078,3035.4,3034.6,22.5778]
[1763334439811,0.00494592,3035.3,3034.7,0.53916592]
[1763334440016,0.00494592,3035.3,3034.8,19.356]
[1763334440205,0.00494592,3035.3,3034.7,6.13037324]
[1763334440206,0.00494592,3035.3,3034.7,3.21274592]
[1763334440509,3.2078,3035.1,3034.1,3.2078]
[1763334440709,3.2078,3035.1,3034.8,0.5342]
[1763334440909,0.00045175,3035.4,3035.0,3.2078]
[1763334441108,0.00045175,3035.4,3035.2,0.53413]
[1763334441321,0.00045175,3035.4,3035.3,40.8]
[1763334441708,3.2078,3036.6,3035.3,50.32381832]
[1763334441908,3.2078,3037.6,3036.4,2.31372916]
[1763334442110,3.2078,3037.6,3036.7,3.2078]
[1763334442313,0.00494592,3037.3,3036.7,3.2078]
[1763334442717,3.2078,3036.8,3035.1,3.2078]
[1763334442911,3.2078,3036.8,3031.1,3.13431427]
[1763334442912,3.2078,3035.3,3033.9,3.2078]
[1763334443106,3.2078,3035.2,3033.9,3.2078]
[1763334443311,3.2078,3034.3,3032.9,5.52152916]
[1763334443513,3.2078,3034.3,3033.0,19.337]
[1763334443708,0.00494592,3034.0,3033.0,0.00413861]
[1763334444014,0.00494592,3034.0,3033.3,0.00494592]
[1763334444411,0.00494592,3034.0,3033.0,0.00413861]
[1763334444412,3.2078,3033.7,3033.0,0.00413861]
[1763334444609,0.00494592,3034.0,3033.0,0.00413861]
[1763334445124,3.2078,3033.8,3033.0,0.00413861]
[1763334445511,3.2078,3033.8,3033.1,0.00494592]
[1763334445821,3.2078,3033.8,3031.0,0.53486]
[1763334445822,3.2078,3033.2,3032.0,3.2078]
[1763334446122,3.2078,3032.8,3031.8,3.2078]
[1763334446309,3.2078,3033.7,3032.3,3.2078]
[1763334446716,0.00362662,3034.3,3033.6,4.6427]
[1763334446909,3.2078,3035.4,3034.3,0.53428]
[1763334447116,3.2078,3036.0,3034.9,3.2078]
[1763334447421,3.2078,3036.0,3034.1,2.31372916]
[1763334447422,3.2078,3036.0,3035.3,3.2078]